bitfinex/quotes_BTCUSD_20260315
["timestamp","ask_amount","ask_price","bid_price","bid_amount"]
[1773555018132,0.06987729,71554.0,71547.0,0.06988367]
[1773555018335,0.06987729,71554.0,71547.0,0.07128367]
[1773555018934,0.06987729,71554.0,71545.0,0.0002]
[1773555019223,0.05162502,71553.0,71543.0,0.0002]
[1773555019450,0.06987729,71554.0,71543.0,0.0002]
[1773555021053,0.05162502,71553.0,71543.0,0.0002]
[1773555023617,0.06987924,71552.0,71543.0,0.0002]
[1773555026125,0.06987924,71553.0,71543.0,0.0002]
[1773555034170,0.06987279,71559.0,71544.0,0.05022754]
[1773555034919,0.20900603,71559.0,71544.0,0.05022754]
[1773555035545,0.20900603,71559.0,71544.0,0.05122754]
[1773555035744,0.06987279,71559.0,71545.0,0.06988608]
[1773555035952,0.06987279,71559.0,71546.0,0.05022754]
[1773555036183,0.06987279,71559.0,71548.0,0.05022754]
[1773555038254,0.06987279,71559.0,71550.0,0.05022754]
[1773555039694,0.06987279,71559.0,71548.0,0.06988233]
[1773555039900,0.06987279,71559.0,71549.0,0.0014]
[1773555040096,0.06987279,71559.0,71547.0,0.06988393]
[1773555040314,0.06987279,71559.0,71547.0,0.07128393]
[1773555040315,0.04711558,71558.0,71547.0,0.07128393]
[1773555040453,0.06987436,71557.0,71547.0,0.07128393]
[1773555040858,0.06987436,71557.0,71547.0,0.06988393]
[1773555043113,0.06987436,71557.0,71544.0,0.06988688]
[1773555043305,0.06987436,71557.0,71545.0,0.0014]
[1773555043753,0.06987436,71557.0,71546.0,0.0014]
[1773555045161,0.06987436,71557.0,71544.0,0.06988688]
[1773555045465,0.06987436,71557.0,71546.0,0.0014]
[1773555045697,0.06987436,71557.0,71544.0,0.06988688]
[1773555045892,0.06987436,71557.0,71546.0,0.0014]
[1773555046709,0.06987436,71557.0,71544.0,0.06988688]
[1773555046951,0.06987436,71557.0,71546.0,0.0014]
[1773555047088,0.06987436,71557.0,71544.0,0.06988688]
[1773555047291,0.06987436,71557.0,71545.0,0.0014]
[1773555047888,0.06987436,71557.0,71546.0,0.0014]
[1773555048429,0.06987436,71557.0,71546.0,0.05162754]
[1773555049615,0.0001,71555.0,71546.0,0.05162754]
[1773555049767,0.0001,71555.0,71547.0,0.06988413]
[1773555051460,0.0002,71555.0,71547.0,0.06988413]
[1773555052530,0.0003,71555.0,71547.0,0.06988413]
[1773555052755,0.07017632,71555.0,71547.0,0.06988413]
[1773555053318,0.07027632,71555.0,71547.0,0.06988413]
[1773555054248,0.07037632,71555.0,71547.0,0.06988413]
[1773555054550,0.06987391,71558.0,71548.0,0.04840808]
[1773555055153,0.0001,71555.0,71548.0,0.04840808]
[1773555055509,0.06987391,71558.0,71548.0,0.04840808]
[1773555056856,0.06987391,71558.0,71550.0,0.04840808]
[1773555059727,0.0700928,71559.0,71550.0,0.11828915]
[1773555059944,0.20928176,71559.0,71550.0,0.11828915]
[1773555060130,0.0001,71555.0,71550.0,0.11828915]
[1773555060477,0.0001,71555.0,71550.0,0.06988107]
[1773555060677,0.0001,71555.0,71550.0,0.11828915]
[1773555061021,0.0001,71555.0,71551.0,0.04840808]
[1773555061231,0.0002,71555.0,71551.0,0.04840808]
[1773555061851,0.0700928,71559.0,71551.0,0.04840808]
[1773555062035,0.0001,71555.0,71551.0,0.04840808]
[1773555062819,0.0001,71555.0,71551.0,0.06987988]
[1773555063023,0.0002,71555.0,71552.0,0.04840808]
[1773555063786,0.0003,71555.0,71552.0,0.04840808]
[1773555064726,0.0004,71555.0,71552.0,0.04840808]
[1773555065527,0.0005,71555.0,71552.0,0.04840808]
[1773555065976,0.07037643,71555.0,71552.0,0.04840808]
[1773555066316,0.07047643,71555.0,71548.0,0.11829049]
[1773555066532,0.07047643,71555.0,71548.0,0.06988241]
[1773555067093,0.07057643,71555.0,71548.0,0.06988241]
[1773555067888,0.07067643,71555.0,71548.0,0.06988241]
[1773555068287,0.07067643,71555.0,71548.0,0.06211241]
[1773555068673,0.07077643,71555.0,71547.0,0.07008403]
[1773555069551,0.07087643,71555.0,71547.0,0.07008403]
[1773555069694,0.07087643,71555.0,71547.0,0.07108403]
[1773555069897,0.07087643,71555.0,71547.0,0.07008403]
[1773555072923,0.07109644,71555.0,71547.0,0.07008403]
[1773555073378,0.07109644,71555.0,71548.0,0.0014]
[1773555075097,0.07109644,71555.0,71548.0,0.07128303]
[1773555075830,0.07109644,71555.0,71544.0,0.04015094]
[1773555075831,0.07109644,71555.0,71549.0,0.0014]
[1773555076192,0.07109644,71555.0,71543.0,0.07008799]
[1773555076193,0.04568794,71554.0,71543.0,0.07008799]
[1773555076398,0.04568794,71554.0,71543.0,0.07148799]
[1773555076823,0.04568794,71554.0,71543.0,0.07008799]
[1773555077019,0.06987827,71553.0,71543.0,0.07148799]
[1773555081777,0.06987069,71561.0,71544.0,0.04443074]
[1773555082094,0.06987069,71561.0,71543.0,0.07148799]
[1773555082095,0.04832671,71557.0,71543.0,0.0002]
[1773555082271,0.04832671,71557.0,71543.0,0.07008786]
[1773555082467,0.04832671,71557.0,71544.0,0.0014]
[1773555084943,0.06987534,71556.0,71543.0,0.07008786]
[1773555085106,0.06987534,71556.0,71545.0,0.0014]
[1773555085307,0.04832671,71555.0,71545.0,0.0014]
[1773555085637,0.04832671,71555.0,71543.0,0.0002]
[1773555085980,0.04832671,71555.0,71543.0,0.0016]
[1773555086531,0.04832671,71555.0,71543.0,0.0002]
[1773555087027,0.06987729,71554.0,71543.0,0.0002]
[1773555087236,0.06987729,71554.0,71543.0,5.01e-05]
[1773555087616,0.118204,71554.0,71543.0,5.01e-05]
[1773555087812,0.07127729,71554.0,71543.0,5.01e-05]
[1773555088114,0.04832671,71553.0,71543.0,5.01e-05]
[1773555089033,0.06987924,71552.0,71543.0,5.01e-05]
[1773555091655,0.07087924,71552.0,71543.0,5.01e-05]
[1773555092060,0.06987924,71552.0,71543.0,5.01e-05]
[1773555092278,0.07087924,71552.0,71543.0,5.01e-05]
[1773555093610,0.06987924,71552.0,71543.0,5.01e-05]
[1773555093758,0.07087924,71552.0,71543.0,5.01e-05]
[1773555093959,0.06987924,71552.0,71543.0,5.01e-05]
[1773555094394,0.07087924,71552.0,71543.0,5.01e-05]
[1773555094594,0.06987924,71552.0,71543.0,5.01e-05]
[1773555095040,0.07087924,71552.0,71543.0,5.01e-05]
[1773555095222,0.06987924,71552.0,71543.0,5.01e-05]
[1773555095726,0.07087924,71552.0,71543.0,5.01e-05]
[1773555097393,0.06987924,71552.0,71543.0,5.01e-05]
[1773555097824,0.07087924,71552.0,71543.0,5.01e-05]
[1773555098050,0.06987924,71552.0,71543.0,5.01e-05]
[1773555098463,0.06987924,71552.0,71536.0,0.070094]
[1773555098464,0.06987924,71552.0,71530.0,0.0014]
[1773555098465,0.05859758,71540.0,71530.0,0.0014]
[1773555098666,0.05859758,71540.0,71528.0,0.0014]
[1773555099257,0.06989194,71539.0,71528.0,0.0014]
[1773555099430,0.06989194,71539.0,71528.0,0.07130252]
[1773555099626,0.06994682,71539.0,71528.0,0.07130252]
[1773555100054,0.06994682,71539.0,71535.0,0.0002]
[1773555101577,5.488e-05,71539.0,71535.0,0.0002]
[1773555101938,5.488e-05,71539.0,71535.0,5.012e-05]
[1773555102137,5.488e-05,71539.0,71528.0,0.07010252]
[1773555108502,5.488e-05,71539.0,71528.0,0.06995264]
[1773555109035,5.488e-05,71539.0,71528.0,0.06965295]
[1773555109940,5.488e-05,71539.0,71528.0,0.07105295]
[1773555111422,5.488e-05,71539.0,71528.0,0.0016]
[1773555112737,5.488e-05,71539.0,71528.0,0.0002]
[1773555112921,5.488e-05,71539.0,71528.0,0.0016]
[1773555113322,5.488e-05,71539.0,71528.0,0.07150194]
[1773555116054,5.488e-05,71539.0,71525.0,0.00034944]
[1773555116276,5.488e-05,71539.0,71526.0,0.04794289]
[1773555116472,0.07129194,71541.0,71526.0,0.04794289]
[1773555116473,0.06989194,71541.0,71526.0,0.04794289]
[1773555116767,0.06989194,71541.0,71526.0,0.04830071]
[1773555117962,0.06988901,71542.0,71528.0,0.04654289]
[1773555119919,0.06988901,71542.0,71529.0,0.06990171]
[1773555120094,0.06988901,71542.0,71530.0,0.04654289]
[1773555120681,0.00022001,71541.0,71530.0,0.04654289]
[1773555121088,0.06988901,71542.0,71530.0,0.04654289]
[1773555121286,0.06984901,71542.0,71530.0,0.04654289]
[1773555122191,0.06984901,71542.0,71530.0,0.04639303]
[1773555122880,0.06984901,71542.0,71531.0,0.04654289]
[1773555125503,0.06984901,71542.0,71531.0,0.06989929]
[1773555125664,0.06984901,71542.0,71532.0,0.04654289]
[1773555126251,0.20916227,71542.0,71532.0,0.04654289]
[1773555126543,0.06984901,71542.0,71532.0,0.04654289]
[1773555127356,0.13931785,71543.0,71533.0,0.04654289]
[1773555127531,0.07001356,71545.0,71535.0,0.04654289]
[1773555128340,0.00022001,71542.0,71536.0,0.06989487]
[1773555128591,0.00012568,71542.0,71536.0,0.06989487]
[1773555128811,0.00012568,71542.0,71536.0,0.11643776]
[1773555129875,0.07001472,71542.0,71536.0,0.11643776]
[1773555130191,0.07001472,71542.0,71536.0,0.04654289]
[1773555130320,0.07001472,71542.0,71534.0,0.07129664]
[1773555130321,0.00012568,71542.0,71534.0,0.07129664]
[1773555135354,3.522e-05,71542.0,71534.0,0.07129664]
[1773555138157,3.522e-05,71542.0,71532.0,0.07129824]
[1773555138361,3.522e-05,71542.0,71530.0,0.0002]
[1773555138362,0.04579137,71542.0,71530.0,0.0002]
[1773555139359,0.07128999,71541.0,71530.0,0.0002]
[1773555139577,0.04575615,71540.0,71530.0,0.0002]
[1773555141809,0.06989194,71539.0,71530.0,0.0002]
[1773555153360,0.06989194,71539.0,71526.0,0.00055782]
[1773555153583,0.06989194,71539.0,71523.0,0.0014]
[1773555153584,0.04532148,71538.0,71523.0,0.0014]
[1773555153926,0.04567876,71538.0,71522.0,0.0014]
[1773555154139,0.04567876,71538.0,71520.0,0.06991011]
[1773555154447,0.0698939,71537.0,71522.0,0.0014]
[1773555156855,0.0698939,71537.0,71522.0,0.07130851]
[1773555158731,0.0698939,71537.0,71522.0,0.07150851]
[1773555159846,0.0698939,71537.0,71522.0,0.07010851]
[1773555160021,0.0698939,71537.0,71523.0,0.0014]
[1773555173093,0.0698939,71537.0,71522.0,0.0002]
[1773555173323,0.0698939,71537.0,71523.0,0.0014]
[1773555180941,0.0418156,71536.0,71523.0,0.0014]
[1773555183253,0.06989585,71535.0,71523.0,0.0014]
[1773555183454,0.11171145,71535.0,71523.0,0.0014]
[1773555186186,0.11171145,71535.0,71522.0,0.0002]
[1773555186479,0.11171145,71535.0,71522.0,0.0016]
[1773555189306,0.0418156,71534.0,71518.0,0.0002]
[1773555189468,0.0418156,71531.0,71514.0,0.0701162]
[1773555190046,0.0432156,71531.0,71514.0,0.0715162]
[1773555190249,0.0432156,71531.0,71514.0,0.11554017]
[1773555190250,0.05862568,71530.0,71514.0,0.11554017]
[1773555191176,0.05862568,71530.0,71514.0,0.0701162]
[1773555191529,0.0418156,71528.0,71515.0,0.0014]
[1773555193350,0.06990367,71527.0,71515.0,0.0014]
[1773555193555,0.0418156,71526.0,71515.0,0.0014]
[1773555193912,0.0418156,71526.0,71516.0,0.0002]
[1773555194570,0.0418156,71526.0,71514.0,0.0002]
[1773555195471,0.11172122,71525.0,71514.0,0.0002]
[1773555195848,0.0014,71524.0,71514.0,0.0002]
[1773555197735,0.06990758,71523.0,71514.0,0.0002]
[1773555199093,0.11172318,71523.0,71514.0,0.0002]
[1773555203036,0.06990758,71523.0,71514.0,0.0002]
[1773555213431,0.06990758,71523.0,71509.0,0.00251983]
[1773555213663,0.06990758,71523.0,71506.0,0.0001272]
[1773555213664,0.06990758,71523.0,71501.0,0.10947197]
[1773555213665,0.0409597,71519.0,71501.0,0.10947197]
[1773555213909,0.0014,71518.0,71501.0,0.10947197]
[1773555214178,0.06991344,71517.0,71501.0,0.10947197]
[1773555217858,0.06991344,71517.0,71501.0,0.03954357]
[1773555219872,0.06991344,71517.0,71502.0,0.06992811]
[1773555220134,0.06991344,71517.0,71503.0,0.0014]
[1773555223350,0.11087314,71517.0,71503.0,0.0014]
[1773555223577,0.11087314,71517.0,71502.0,0.07132793]
[1773555224097,0.11087314,71517.0,71502.0,0.06992793]
[1773555224306,0.11087314,71517.0,71501.0,0.0002]
[1773555224307,0.0409597,71516.0,71501.0,0.0016]
[1773555225394,0.0699154,71515.0,71501.0,0.0016]
[1773555225973,0.0699154,71515.0,71501.0,0.0002]
[1773555226322,0.0699154,71515.0,71498.0,0.01124]
[1773555226467,0.1108751,71515.0,71498.0,0.01124]
[1773555226665,0.1108751,71515.0,71498.0,0.08117142]
[1773555227024,0.1108751,71515.0,71498.0,0.12071499]
[1773555227227,0.0699154,71515.0,71499.0,0.03954357]
[1773555234472,0.0699154,71515.0,71499.0,0.10947432]
[1773555236302,0.0699154,71515.0,71499.0,0.06993075]
[1773555236468,0.0699154,71515.0,71499.0,0.10854913]
[1773555239105,0.0699154,71515.0,71499.0,0.06993075]
[1773555239322,0.07130855,71522.0,71506.0,0.03861838]
[1773555239568,0.07130855,71522.0,71508.0,0.03861838]
[1773555241571,0.07130855,71522.0,71507.0,0.0713225]
[1773555242323,0.07130855,71522.0,71508.0,0.03861838]
[1773555244038,0.07130855,71522.0,71507.0,0.0713225]
[1773555244232,0.07130855,71522.0,71506.0,0.00035728]
[1773555244233,0.05865499,71520.0,71506.0,1e-08]
[1773555244433,0.05865499,71520.0,71499.0,0.0002]
[1773555244434,0.03828676,71518.0,71500.0,0.0014]
[1773555244659,0.03864404,71518.0,71499.0,0.07153097]
[1773555244841,0.03828676,71517.0,71499.0,0.07153097]
[1773555245058,0.03968676,71516.0,71499.0,0.07013097]
[1773555245255,0.03968676,71516.0,71499.0,0.07153097]
[1773555246115,0.0699154,71515.0,71499.0,0.0016]
[1773555246326,0.10820216,71515.0,71499.0,0.07153096]
[1773555246510,0.0699154,71515.0,71499.0,0.11363805]
[1773555246864,0.0699154,71515.0,71500.0,0.04210709]
[1773555249656,0.20906629,71515.0,71500.0,0.04210709]
[1773555252808,0.20906629,71515.0,71500.0,0.06992999]
[1773555253106,0.20906629,71515.0,71501.0,0.04185165]
[1773555256721,0.20906629,71515.0,71501.0,0.04205165]
[1773555261584,0.20906629,71515.0,71502.0,0.03850858]
[1773555261778,0.0014,71514.0,71502.0,0.03850858]
[1773555261983,0.20906629,71515.0,71502.0,0.03850858]
[1773555262312,0.0014,71513.0,71502.0,0.03850858]
[1773555262705,0.0014,71512.0,71502.0,0.03850858]
[1773555263221,0.20906629,71515.0,71502.0,0.03850858]
[1773555263523,0.06991833,71512.0,71503.0,0.03850858]
[1773555264532,0.07131833,71512.0,71503.0,0.03850858]
[1773555264754,0.06991833,71512.0,71503.0,0.03850858]
[1773555266053,0.06991833,71512.0,71503.0,0.03870858]
[1773555266614,0.05341613,71512.0,71503.0,0.03870858]
[1773555266816,0.03691393,71512.0,71503.0,0.03870858]
[1773555267744,0.03691393,71512.0,71504.0,0.03850858]
[1773555268796,0.07131833,71513.0,71504.0,0.03850858]
[1773555268797,0.0699154,71515.0,71504.0,0.03850858]
[1773555269350,0.0699154,71515.0,71504.0,0.03990858]
[1773555269774,0.0699154,71515.0,71504.0,0.1098341]
[1773555269999,0.0699154,71515.0,71504.0,0.0014]
[1773555273411,0.0699154,71515.0,71504.0,0.07132556]
[1773555275855,0.0699154,71515.0,71499.0,0.07013079]
[1773555275856,0.04130563,71514.0,71499.0,0.07013088]
[1773555276097,0.04130563,71514.0,71501.0,0.0002]
[1773555276296,0.07013541,71515.0,71502.0,0.03850858]
[1773555276680,0.07013541,71515.0,71503.0,0.0014]
[1773555277526,0.11144104,71515.0,71503.0,0.0014]
[1773555277733,0.07013541,71515.0,71495.0,0.0002]
[1773555277942,0.07013541,71515.0,71496.0,0.06998371]
[1773555277943,0.04270563,71514.0,71496.0,0.06998371]
[1773555278142,0.04270563,71514.0,71497.0,0.0014]
[1773555280162,0.06991735,71513.0,71497.0,0.07133216]
[1773555280593,0.20927295,71513.0,71497.0,0.10984074]
[1773555282457,0.20927295,71513.0,71498.0,0.03850858]
[1773555283269,0.20927295,71513.0,71500.0,0.05865354]
[1773555283499,0.06991735,71513.0,71501.0,0.03850858]
[1773555283833,0.0014,71517.0,71501.0,0.03850858]
[1773555283834,0.07011391,71537.0,71502.0,1.234332]
[1773555284030,0.07011391,71537.0,71519.0,0.03850858]
[1773555284031,0.00026495,71531.0,71519.0,0.03850858]
[1773555284383,0.07016477,71531.0,71521.0,0.03850858]
[1773555284596,0.07016477,71531.0,71522.0,0.06990855]
[1773555284921,0.07016477,71531.0,71522.0,0.10841713]
[1773555285333,0.06989982,71531.0,71522.0,0.10841713]
[1773555287693,0.00022001,71539.0,71523.0,0.03850858]
[1773555287867,0.0701122,71539.0,71523.0,0.03861586]
[1773555288692,0.04130563,71543.0,71523.0,0.03861586]
[1773555288694,0.00022001,71549.0,71530.0,0.03577362]
[1773555288890,0.07010258,71549.0,71530.0,0.03577362]
[1773555289077,0.04152564,71547.0,71530.0,0.03577362]
[1773555289279,0.04152564,71547.0,71523.0,0.00150728]
[1773555289280,0.04130563,71542.0,71523.0,0.00010728]
[1773555289736,0.04130563,71540.0,71523.0,0.00010728]
[1773555290344,0.04130563,71540.0,71521.0,0.06990856]
[1773555290345,0.04130563,71540.0,71521.0,0.06990855]
[1773555290656,0.04130563,71540.0,71522.0,0.06996343]
[1773555291569,0.04146343,71540.0,71522.0,0.06996343]
[1773555292073,0.07010247,71549.0,71531.0,0.03806065]
[1773555292277,0.07010247,71549.0,71531.0,0.0014]
[1773555292278,0.04142856,71548.0,71531.0,0.0014]
[1773555292477,0.00022001,71540.0,71531.0,0.0014]
[1773555294787,0.00022001,71540.0,71532.0,0.06989878]
[1773555297080,0.07010153,71550.0,71532.0,0.06989878]
[1773555297081,0.01326001,71555.0,71532.0,0.06989878]
[1773555297278,0.17397332,71592.0,71532.0,0.06989878]
[1773555297279,0.17397332,71592.0,71541.0,0.03765757]
[1773555297280,0.0014,71559.0,71541.0,0.03765757]
[1773555297478,0.0014,71558.0,71541.0,0.03765757]
[1773555299046,0.0014,71558.0,71542.0,0.06988901]
[1773555299246,0.0014,71558.0,71543.0,0.03832665]
[1773555300264,0.05865354,71580.0,71542.0,0.06988901]
[1773555300265,0.06985484,71577.0,71549.0,0.03688891]
[1773555300474,0.05865354,71570.0,71542.0,0.06988901]
[1773555300704,0.04142856,71569.0,71543.0,0.04157661]
[1773555301156,0.00022001,71555.0,71543.0,0.04157661]
[1773555301307,0.00022001,71555.0,71546.0,0.04157661]
[1773555301516,0.0014,71557.0,71546.0,0.04157661]
[1773555303218,0.0014,71557.0,71547.0,0.06988413]
[1773555306386,0.0014,71558.0,71550.0,0.05865354]
[1773555306664,0.00056612,71558.0,71550.0,0.05865354]
[1773555307671,0.00078613,71558.0,71550.0,0.05865354]
[1773555308265,0.00078613,71558.0,71551.0,0.06988022]
[1773555309850,0.0014,71559.0,71551.0,0.06988022]
[1773555311530,0.04142856,71558.0,71535.0,0.07155713]
[1773555311735,0.04142856,71558.0,71535.0,0.07166435]
[1773555311937,0.04142856,71558.0,71540.0,0.05865354]
[1773555312710,0.04142856,71558.0,71541.0,0.06988999]
[1773555313263,0.04142856,71557.0,71541.0,0.06988999]
[1773555314429,0.04142856,71557.0,71546.0,0.0002]
[1773555314636,0.04142856,71557.0,71541.0,0.06988999]
[1773555314637,0.06987534,71556.0,71541.0,0.06988999]
[1773555314772,0.06987534,71556.0,71535.0,0.0017685]
[1773555314773,0.04142856,71555.0,71538.0,0.06989292]
[1773555314972,0.04142856,71555.0,71538.0,0.07009292]
[1773555317203,0.11130585,71554.0,71538.0,0.07009292]
[1773555322668,0.0014,71553.0,71538.0,0.07009292]
[1773555324501,0.06987924,71552.0,71538.0,0.07009292]
[1773555328397,0.0014,71551.0,71538.0,0.07009292]
[1773555329917,0.07128111,71551.0,71538.0,0.07009292]
[1773555331730,0.06988111,71551.0,71539.0,0.04381211]
[1773555331935,0.0014,71550.0,71540.0,0.06989097]
[1773555332734,0.07128121,71550.0,71540.0,0.06989097]
[1773555335290,0.06987534,71558.0,71540.0,0.06989097]
[1773555335491,0.07127534,71556.0,71540.0,0.06989097]
[1773555337457,0.07149535,71556.0,71540.0,0.06989097]
[1773555338491,0.07149535,71556.0,71536.0,0.06989473]
[1773555338492,0.02080704,71555.0,71536.0,0.06989473]
[1773555339294,0.09071111,71554.0,71536.0,0.06989473]
[1773555340531,0.02205757,71553.0,71536.0,0.06989473]
[1773555341396,0.06987924,71552.0,71536.0,0.06989473]
[1773555344965,0.06987924,71552.0,71536.0,0.07009473]
[1773555353963,0.09393393,71552.0,71536.0,0.07009473]
[1773555356371,0.09415394,71552.0,71536.0,0.07009473]
[1773555359761,0.07009925,71552.0,71536.0,0.07009473]
[1773555362654,0.0014,71551.0,71541.0,0.04608895]
[1773555362833,0.0014,71551.0,71536.0,0.07009473]
[1773555364403,0.0698812,71550.0,71536.0,0.07009473]
[1773555365109,0.0698812,71550.0,71536.0,0.01624825]
[1773555365758,0.12847302,71550.0,71536.0,0.01624825]
[1773555366157,0.0698812,71550.0,71536.0,0.01624825]
[1773555368098,0.0698812,71550.0,71535.0,0.0017685]
[1773555368316,0.0698812,71550.0,71531.0,0.0002246]
[1773555368317,0.06988413,71547.0,71531.0,0.0002246]
[1773555368509,0.0464856,71546.0,71531.0,0.00027948]
[1773555368809,0.0464856,71544.0,71531.0,0.00027948]
[1773555370387,0.06988803,71543.0,71531.0,0.00027948]
[1773555373145,0.11637363,71543.0,71531.0,0.00027948]
[1773555373363,0.06988803,71543.0,71530.0,0.0002]
[1773555373542,0.0464856,71542.0,71528.0,0.0002]
[1773555374369,0.06988999,71541.0,71528.0,0.0002]
[1773555378624,0.10507742,71540.0,71523.0,0.0002]
[1773555378751,0.0464856,71539.0,71523.0,0.07015224]
[1773555378950,0.05859182,71540.0,71523.0,0.11624119]
[1773555379172,0.06988999,71542.0,71523.0,0.11624119]
[1773555380437,0.06988803,71543.0,71524.0,0.04608895]
[1773555380561,0.06989097,71540.0,71525.0,0.06990562]
[1773555380908,0.06989097,71540.0,71526.0,0.04608895]
[1773555383159,0.06989097,71540.0,71528.0,0.05124861]
[1773555383389,0.0014,71539.0,71528.0,0.05124861]
[1773555385221,0.06989292,71538.0,71529.0,0.06990171]
[1773555385540,0.06989292,71538.0,71530.0,0.05124861]
[1773555388786,0.06988354,71548.0,71530.0,0.12114893]
[1773555388991,0.0014,71547.0,71530.0,0.12114893]
[1773555390774,0.0014,71547.0,71531.0,0.05124861]
[1773555392274,0.0698851,71546.0,71531.0,0.05124861]
[1773555398337,0.0698851,71546.0,71528.0,0.07010074]
[1773555398583,0.11963586,71546.0,71528.0,0.07010074]
[1773555398965,0.04975076,71545.0,71528.0,0.07010074]
[1773555399490,0.0014,71544.0,71528.0,0.07010074]
[1773555402014,0.05861185,71540.0,71528.0,0.07010074]
[1773555402169,0.11963879,71543.0,71528.0,0.07010074]
[1773555404694,0.06988803,71543.0,71528.0,0.07010074]
[1773555404894,0.04975076,71542.0,71528.0,0.07010074]
[1773555409297,0.06988999,71541.0,71528.0,0.07010074]
[1773555410727,0.06988999,71541.0,71528.0,0.12240531]
[1773555411418,0.06988999,71542.0,71530.0,0.06990074]
[1773555411824,0.06988999,71542.0,71530.0,0.06986074]
[1773555415932,0.06988999,71542.0,71531.0,0.05123005]
[1773555416521,0.06988999,71542.0,71531.0,0.06989914]
[1773555416676,0.06988999,71542.0,71532.0,0.05123005]
[1773555419510,0.0014,71541.0,71532.0,0.05123005]
[1773555419706,0.0014,71541.0,71532.0,0.05174545]
[1773555420960,0.06989097,71540.0,71532.0,0.05174545]
[1773555421959,0.06989097,71540.0,71533.0,0.05123005]
[1773555422520,0.06988706,71544.0,71533.0,0.05123005]
[1773555422802,0.0014,71539.0,71533.0,0.05123005]
[1773555423005,0.06988265,71549.0,71533.0,0.05123005]
[1773555423006,0.07009939,71552.0,71535.0,0.05123005]
[1773555423213,0.0014,71549.0,71535.0,0.05123005]
[1773555423961,0.0014,71549.0,71540.0,0.05123005]
[1773555424594,0.00034961,71550.0,71540.0,0.05123005]
[1773555424790,0.0014,71548.0,71540.0,0.05123005]
[1773555425201,0.0014,71547.0,71541.0,0.12112004]
[1773555425824,0.0014,71546.0,71542.0,0.05123005]
[1773555426170,0.0014,71545.0,71542.0,0.05123005]
[1773555426590,0.00034961,71550.0,71542.0,0.05123005]
[1773555426791,0.0014,71545.0,71542.0,0.05123005]
[1773555426993,0.00034961,71550.0,71542.0,0.05123005]
[1773555427193,0.0014,71545.0,71543.0,0.12111808]
[1773555427598,0.0014,71545.0,71542.0,0.06988838]
[1773555428912,0.0014,71545.0,71540.0,0.06988999]
[1773555429131,0.0014,71545.0,71540.0,0.12112004]
[1773555430773,0.00162001,71545.0,71540.0,0.12112004]
[1773555431648,0.00162001,71545.0,71541.0,0.05123005]
[1773555432641,0.00022001,71545.0,71538.0,0.06989097]
[1773555432837,0.00022001,71545.0,71531.0,0.06989976]
[1773555433037,0.00022001,71545.0,71532.0,0.05123005]
[1773555433926,0.06988706,71544.0,71531.0,0.06989976]
[1773555434305,0.11856739,71544.0,71531.0,0.06989976]
[1773555436647,0.04868033,71544.0,71531.0,0.06989976]
[1773555436883,0.07010707,71545.0,71531.0,0.06989976]
[1773555437725,0.07010707,71545.0,71531.0,0.07009976]
[1773555439928,0.07010707,71545.0,71531.0,0.12132981]
[1773555442061,0.07010707,71545.0,71531.0,0.07009976]
[1773555442274,0.00022001,71545.0,71532.0,0.05583959]
[1773555442486,0.07010613,71545.0,71532.0,0.05583959]
[1773555444375,0.07010613,71545.0,71533.0,0.0698978]
[1773555447384,0.0014,71544.0,71533.0,0.0698978]
[1773555452475,0.0014,71544.0,71533.0,0.12573739]
[1773555460294,0.07128709,71544.0,71533.0,0.12573739]
[1773555461511,0.07128709,71544.0,71533.0,0.12593739]
[1773555461813,0.0715071,71544.0,71533.0,0.12593739]
[1773555463928,0.0715071,71544.0,71533.0,0.0700978]
[1773555467465,0.00022001,71545.0,71534.0,0.05859202]
[1773555467614,0.00022001,71545.0,71535.0,0.05583959]
[1773555467819,0.0014,71544.0,71535.0,0.05583959]
[1773555469010,0.0014,71544.0,71536.0,0.06989487]
[1773555470219,0.0014,71544.0,71536.0,0.12573446]
[1773555472122,0.0014,71544.0,71536.0,0.06989487]
[1773555472317,0.0014,71544.0,71536.0,0.07089487]
[1773555472721,0.0014,71544.0,71536.0,0.06989487]
[1773555473124,0.00022001,71545.0,71536.0,0.06989487]
[1773555473313,0.00162001,71545.0,71535.0,0.06989487]
[1773555475991,0.00162001,71545.0,71535.0,0.12848689]
[1773555476933,0.00162001,71545.0,71536.0,0.0002]
[1773555480256,0.00162001,71545.0,71537.0,0.0698939]
[1773555480420,0.00193841,71545.0,71537.0,0.0698939]
[1773555481839,0.0001282,71551.0,71538.0,0.05699039]
[1773555482040,0.00022001,71557.0,71537.0,0.0698939]
[1773555482041,0.06986907,71563.0,71547.0,0.05699039]
[1773555482243,0.06986765,71564.0,71548.0,0.06988315]
[1773555482244,0.0014,71560.0,71548.0,0.06988315]
[1773555482442,0.0014,71560.0,71549.0,0.05699039]
[1773555482612,0.0014,71561.0,71550.0,0.05859202]
[1773555483233,0.00150485,71561.0,71550.0,0.05859202]
[1773555483429,0.0014,71562.0,71551.0,0.05699039]
[1773555483641,0.0014,71562.0,71553.0,0.05699039]
[1773555484522,0.00022001,71560.0,71554.0,0.06987729]
[1773555484823,0.0014,71562.0,71554.0,0.06987729]
[1773555491207,0.00162001,71562.0,71554.0,0.06987729]
[1773555492709,0.00022001,71562.0,71554.0,0.06987729]
[1773555493503,0.0014,71564.0,71554.0,0.06987729]
[1773555497100,0.0014,71564.0,71553.0,0.06987729]
[1773555498641,0.0014,71564.0,71553.0,0.07007729]
[1773555498945,0.00162001,71564.0,71553.0,0.07007729]
[1773555501952,0.00162001,71564.0,71554.0,0.05859202]
[1773555502159,0.00022001,71564.0,71553.0,0.06987729]
[1773555503240,0.00022001,71564.0,71554.0,0.05859202]
[1773555503947,0.00022001,71564.0,71555.0,0.06987631]
[1773555508309,5.16028693,71560.0,71555.0,0.06987631]
[1773555508484,4.68083133,71560.0,71555.0,0.06987631]
[1773555508687,4.40140519,71560.0,71555.0,0.06987631]
[1773555508869,4.19183412,71560.0,71555.0,0.06987631]
[1773555509071,3.98226305,71560.0,71555.0,0.06987631]
[1773555509273,3.77269198,71560.0,71555.0,0.06987631]
[1773555509474,3.56312091,71560.0,71553.0,0.0002]
[1773555509679,3.35354693,71560.0,71555.0,0.06987631]
[1773555509881,3.21383092,71560.0,71555.0,0.06987631]
[1773555510102,3.07411493,71560.0,71555.0,0.06987631]
[1773555510318,2.93439893,71560.0,71555.0,0.06987631]
[1773555512962,2.93439893,71560.0,71553.0,0.07007729]
[1773555513161,0.05723546,71559.0,71554.0,0.03840624]
[1773555513367,2.93439893,71560.0,71554.0,0.03840624]
[1773555513368,2.93439893,71560.0,71555.0,0.06987631]
[1773555519882,2.25380282,71560.0,71556.0,0.05877464]
[1773555520124,1.90273642,71560.0,71555.0,0.06987631]
[1773555520318,1.89818795,71560.0,71555.0,0.06987631]
[1773555521665,1.8936466,71560.0,71555.0,0.06987631]
[1773555521841,1.88532058,71560.0,71555.0,0.06987631]
[1773555522525,0.44926715,71560.0,71556.0,0.03763482]
[1773555522693,0.00491373,71560.0,71555.0,0.06987631]